bitfinex/quotes_BTCUSD_20230114
["timestamp","ask_amount","ask_price","bid_price","bid_amount"]
[1673681763450,2.03231393,20956.0,20955.0,0.009]
[1673681764443,1.6753545,20956.0,20955.0,0.009]
[1673681765197,1.19924098,20956.0,20955.0,0.009]
[1673681765449,1.55620041,20956.0,20955.0,0.009]
[1673681766673,1.25620041,20956.0,20955.0,0.009]
[1673681766909,1.55620041,20956.0,20955.0,0.009]
[1673681767151,1.25620041,20956.0,20955.0,0.009]
[1673681767398,0.89924098,20956.0,20955.0,0.009]
[1673681767647,1.25620041,20956.0,20955.0,0.009]
[1673681767897,1.27024943,20956.0,20955.0,0.009]
[1673681769102,0.97024943,20956.0,20955.0,0.009]
[1673681769391,1.25645146,20956.0,20955.0,0.009]
[1673681769895,1.55645146,20956.0,20955.0,0.009]
[1673681770644,1.01329,20956.0,20955.0,0.009]
[1673681771137,0.91329,20956.0,20955.0,0.009]
[1673681772391,1.01329,20956.0,20955.0,0.009]
[1673681772881,0.91329,20956.0,20955.0,0.009]
[1673681774141,1.27104752,20956.0,20955.0,0.009]
[1673681774889,0.91329,20956.0,20955.0,0.009]
[1673681777166,1.34164132,20956.0,20955.0,0.009]
[1673681777669,1.44164132,20956.0,20955.0,0.009]
[1673681777909,1.82815835,20956.0,20955.0,0.009]
[1673681778157,1.87589635,20956.0,20955.0,0.009]
[1673681778397,1.63755001,20956.0,20955.0,0.009]
[1673681779125,1.29988335,20956.0,20955.0,0.009]
[1673681779633,2.67568125,20956.0,20955.0,0.009]
[1673681779874,2.43352895,20956.0,20955.0,0.009]
[1673681780132,2.91612685,20956.0,20955.0,0.009]
[1673681780639,2.43352895,20956.0,20955.0,0.009]
[1673681781405,2.19308335,20956.0,20955.0,0.009]
[1673681781646,2.67495576,20956.0,20955.0,0.009]
[1673681782138,3.14905793,20956.0,20955.0,0.009]
[1673681782391,2.75140542,20956.0,20955.0,0.009]
[1673681782634,0.1,20955.0,20952.0,0.16294854]
[1673681782888,0.2543,20953.0,20952.0,0.11734299]
[1673681783134,1.94538049,20953.0,20952.0,0.11734299]
[1673681783373,1.99311849,20953.0,20952.0,0.11734299]
[1673681783617,2.09311849,20953.0,20952.0,0.11734299]
[1673681784109,2.09311849,20953.0,20952.0,0.14234299]
[1673681784434,2.5345458,20953.0,20952.0,0.14234299]
[1673681784697,2.04538049,20953.0,20952.0,0.09675501]
[1673681784945,1.53799769,20953.0,20952.0,0.09675501]
[1673681785189,1.59443694,20953.0,20952.0,0.09675501]
[1673681785672,1.23799769,20953.0,20952.0,0.09675501]
[1673681785914,1.5942838,20953.0,20952.0,0.09675501]
[1673681786190,1.5942838,20953.0,20952.0,0.05119768]
[1673681786435,0.1,20952.0,20949.0,0.00891235]
[1673681786692,2.54399634,20951.0,20949.0,0.00891235]
[1673681786935,0.87720169,20950.0,20949.0,0.00891235]
[1673681787188,1.36302769,20950.0,20949.0,0.00891235]
[1673681787927,0.485826,20950.0,20949.0,0.14791235]
[1673681788382,0.477326,20950.0,20949.0,0.14791235]
[1673681789435,0.477304,20951.0,20949.0,0.06889235]
[1673681789681,0.0115,20950.0,20949.0,0.20789235]
[1673681790186,0.0085,20950.0,20949.0,0.06889235]
[1673681790431,0.0085,20950.0,20949.0,0.00891235]
[1673681790685,0.0085,20950.0,20949.0,0.14791235]
[1673681791187,0.54652065,20954.0,20949.0,0.32233525]
[1673681791442,0.003,20950.0,20949.0,0.5370512]
[1673681791686,0.24187883,20953.0,20949.0,0.34632525]
[1673681791922,0.24187883,20953.0,20949.0,0.5370512]
[1673681792171,0.24187883,20953.0,20949.0,0.3980512]
[1673681792409,0.24187883,20953.0,20949.0,0.34632525]
[1673681792677,0.3,20952.0,20949.0,0.20732525]
[1673681792919,0.0085,20951.0,20949.0,0.20732525]
[1673681793166,0.0085,20952.0,20950.0,0.16981192]
[1673681793414,0.0085,20952.0,20949.0,0.14791235]
[1673681793661,0.477282,20952.0,20949.0,0.14791235]
[1673681793926,0.3,20951.0,20949.0,0.00891235]
[1673681794159,0.477326,20950.0,20949.0,0.14791235]
[1673681794406,0.885826,20950.0,20949.0,0.14791235]
[1673681795166,1.012126,20950.0,20949.0,0.00891235]
[1673681795662,1.012126,20950.0,20949.0,0.14791235]
[1673681795916,1.015126,20950.0,20949.0,0.14791235]
[1673681796413,1.255126,20950.0,20949.0,0.07878235]
[1673681797461,1.255126,20950.0,20949.0,0.00965235]
[1673681798940,1.128826,20950.0,20949.0,0.00965235]
[1673681800178,1.028826,20950.0,20949.0,0.00965235]
[1673681802172,0.728826,20950.0,20949.0,0.2603583]
[1673681802430,0.728826,20950.0,20949.0,0.26397878]
[1673681802431,0.243,20950.0,20949.0,0.26397878]
[1673681804681,0.243,20950.0,20949.0,0.20399878]
[1673681804928,0.00463155,20950.0,20949.0,0.20399878]
[1673681805175,0.01313155,20950.0,20949.0,0.20399878]
[1673681805419,0.01313155,20950.0,20949.0,0.19434643]
[1673681805690,0.02613155,20950.0,20949.0,0.21434643]
[1673681806213,0.01313155,20950.0,20949.0,0.19434643]
[1673681806459,0.02013155,20950.0,20949.0,0.21334643]
[1673681808968,0.02013155,20950.0,20949.0,0.019]
[1673681810232,0.32013155,20950.0,20949.0,0.019]
[1673681810483,0.79745755,20950.0,20949.0,0.019]
[1673681811258,1.11122154,20950.0,20949.0,0.019]
[1673681813995,1.3962402,20950.0,20949.0,0.019]
[1673681814483,1.2962402,20950.0,20949.0,0.019]
[1673681814724,1.01122154,20950.0,20949.0,0.019]
[1673681814971,1.2962402,20950.0,20949.0,0.019]
[1673681815232,1.3962402,20950.0,20949.0,0.019]
[1673681815988,1.53874953,20950.0,20949.0,0.019]
[1673681816230,1.43874953,20950.0,20949.0,0.019]
[1673681817920,1.20884736,20950.0,20949.0,0.019]
[1673681818162,1.12711798,20950.0,20949.0,0.019]
[1673681818664,0.84209932,20950.0,20949.0,0.019]
[1673681819139,1.12763958,20950.0,20949.0,0.019]
[1673681819403,1.14209932,20950.0,20949.0,0.019]
[1673681819648,1.42764387,20950.0,20949.0,0.019]
[1673681820898,1.90484556,20950.0,20949.0,0.019]
[1673681821145,1.57313249,20950.0,20949.0,0.019]
[1673681822415,1.70083249,20950.0,20949.0,0.019]
[1673681822912,2.12895329,20950.0,20949.0,0.019]
[1673681823893,1.70083249,20950.0,20949.0,0.019]
[1673681824136,2.12895329,20950.0,20949.0,0.019]
[1673681824376,1.70083249,20950.0,20949.0,0.019]
[1673681826327,1.73072769,20950.0,20949.0,0.019]
[1673681827319,2.03840837,20950.0,20949.0,0.019]
[1673681828050,2.46652917,20950.0,20949.0,0.019]
[1673681828295,2.26281423,20950.0,20949.0,0.019]
[1673681829510,2.69093503,20950.0,20949.0,0.019]
[1673681829764,2.26281423,20950.0,20949.0,0.019]
[1673681830027,2.69093503,20950.0,20949.0,0.019]
[1673681830269,2.26281423,20950.0,20949.0,0.019]
[1673681830769,2.02441241,20950.0,20949.0,0.019]
[1673681831765,2.45253321,20950.0,20949.0,0.019]
[1673681833236,2.22812735,20950.0,20949.0,0.019]
[1673681833473,2.50027665,20950.0,20949.0,0.019]
[1673681834468,2.97437882,20950.0,20949.0,0.019]
[1673681834999,2.50027665,20950.0,20949.0,0.019]
[1673681836534,2.50027665,20950.0,20948.0,0.00891235]
[1673681836535,0.1,20949.0,20948.0,0.00740235]
[1673681836783,2.14867935,20949.0,20948.0,0.00740235]
[1673681837545,2.40407935,20949.0,20948.0,0.00740235]
[1673681838046,2.45181735,20949.0,20948.0,0.00740235]
[1673681838308,2.92591952,20949.0,20948.0,0.00740235]
[1673681838584,2.46481735,20949.0,20948.0,0.01740235]
[1673681838828,2.68924644,20949.0,20948.0,0.01740235]
[1673681841059,3.11736724,20949.0,20948.0,0.01740235]
[1673681841349,3.59146941,20949.0,20948.0,0.01740235]
[1673681841847,3.16334861,20949.0,20948.0,0.01740235]
[1673681842094,0.1,20948.0,20947.0,0.00846948]
[1673681842337,1.79866201,20948.0,20945.0,0.00843563]
[1673681842591,0.35579196,20946.0,20945.0,0.00843563]
[1673681842849,3.22891858,20946.0,20945.0,0.00843563]
[1673681843106,3.23741858,20946.0,20945.0,0.00843563]
[1673681843860,2.92940488,20946.0,20945.0,0.00843563]
[1673681844116,3.15386405,20946.0,20945.0,0.00843563]
[1673681844599,3.28986405,20946.0,20945.0,0.00843563]
[1673681844831,3.71698949,20946.0,20945.0,0.00843563]
[1673681845082,3.28986405,20946.0,20945.0,0.00843563]
[1673681845316,3.76396622,20946.0,20945.0,0.00843563]
[1673681846304,4.19109166,20946.0,20945.0,0.00843563]
[1673681847304,0.1,20945.0,20941.0,0.01157082]
[1673681847583,2.35370512,20944.0,20941.0,0.01157082]
[1673681847817,3.30318555,20944.0,20941.0,0.01157082]
[1673681848793,3.25540729,20944.0,20941.0,0.01157082]
[1673681849038,3.30358555,20944.0,20941.0,0.01157082]
[1673681849276,3.66408201,20944.0,20941.0,0.01157082]
[1673681850039,3.94829378,20944.0,20941.0,0.01157082]
[1673681850789,4.30356209,20944.0,20941.0,0.01157082]
[1673681851252,4.30356209,20944.0,20943.0,0.00476791]
[1673681851745,0.1,20943.0,20941.0,0.01157082]
[1673681851993,2.75720497,20943.0,20941.0,0.01157082]
[1673681852275,2.2831028,20943.0,20941.0,0.01157082]
[1673681852549,1.57959935,20943.0,20941.0,0.01157082]
[1673681852781,1.67571176,20943.0,20941.0,0.01157082]
[1673681853826,1.97571176,20943.0,20941.0,0.01157082]
[1673681854081,2.11071176,20943.0,20941.0,0.01157082]
[1673681854564,2.33521054,20943.0,20941.0,0.01157082]
[1673681855046,2.39531496,20943.0,20941.0,0.01157082]
[1673681855283,2.60834836,20943.0,20941.0,0.01157082]
[1673681855767,2.60834836,20943.0,20942.0,0.00610045]
[1673681856027,2.89239289,20943.0,20942.0,0.00610045]
[1673681856270,2.60834836,20943.0,20942.0,0.00610045]
[1673681856768,2.36986746,20943.0,20942.0,0.00610045]
[1673681857002,0.1,20942.0,20941.0,0.01157082]
[1673681857252,2.27361859,20942.0,20941.0,0.01157082]
[1673681857502,2.32139685,20942.0,20941.0,0.01157082]
[1673681857997,2.79549902,20942.0,20941.0,0.01157082]
[1673681858496,0.1,20941.0,20940.0,0.01194627]
[1673681858746,1.37185825,20941.0,20940.0,0.01194627]
[1673681859228,1.71963651,20941.0,20940.0,0.01194627]
[1673681859480,2.19373868,20941.0,20940.0,0.01194627]
[1673681860088,2.41826357,20941.0,20940.0,0.01194627]
[1673681860332,2.55126357,20941.0,20940.0,0.01194627]
[1673681862592,2.67906357,20941.0,20940.0,0.01194627]
[1673681863601,0.1,20940.0,20938.0,0.01256066]
[1673681863883,2.22705725,20939.0,20938.0,0.01256066]
[1673681864098,2.26621095,20939.0,20938.0,0.01256066]
[1673681864349,1.96621095,20939.0,20938.0,0.20328661]
[1673681864607,1.96621095,20939.0,20938.0,0.01256066]
[1673681864608,1.91843269,20939.0,20938.0,0.01256066]
[1673681865616,0.955154,20939.0,20938.0,0.01256066]
[1673681866162,0.962154,20939.0,20938.0,0.01256066]
[1673681867115,1.270654,20939.0,20938.0,0.01256066]
[1673681867360,0.970654,20939.0,20938.0,0.01256066]
[1673681867870,1.270654,20939.0,20938.0,0.01256066]
[1673681868116,0.970654,20939.0,20938.0,0.01256066]
[1673681868852,1.270654,20939.0,20938.0,0.01256066]
[1673681869855,1.03215063,20939.0,20938.0,0.01256066]
[1673681875112,2.46058282,20939.0,20938.0,0.01256066]
[1673681875358,2.50836108,20939.0,20938.0,0.01256066]
[1673681876082,2.84124987,20939.0,20938.0,0.01256066]
[1673681876324,2.55720534,20939.0,20938.0,0.01256066]
[1673681876828,2.78174274,20939.0,20938.0,0.01256066]
[1673681877065,3.06578727,20939.0,20938.0,0.01256066]
[1673681877552,3.05171001,20939.0,20938.0,0.01256066]
[1673681877793,3.52576675,20939.0,20938.0,0.01256066]
[1673681878298,3.17056608,20939.0,20938.0,0.01256066]
[1673681878523,0.1,20938.0,20937.0,0.01119481]
[1673681878825,2.9178968,20938.0,20937.0,0.01119481]
[1673681879058,3.15506218,20938.0,20937.0,0.01119481]
[1673681879310,3.15506218,20938.0,20931.0,0.03121109]
[1673681879311,0.1,20937.0,20931.0,0.03121109]
[1673681879554,0.1,20937.0,20926.0,0.4693]
[1673681879555,0.69068324,20933.0,20926.0,0.4693]
[1673681879804,0.69068324,20933.0,20926.0,0.6631582]
[1673681879805,1.433286,20931.0,20926.0,0.6631582]
[1673681880059,1.08666605,20930.0,20926.0,0.6631582]
[1673681880297,2.22859605,20929.0,20927.0,0.15516018]
[1673681880538,2.22859605,20929.0,20924.0,0.1911607]
[1673681880539,0.87720169,20928.0,20924.0,0.1911607]
[1673681880788,1.75087805,20927.0,20924.0,0.1911607]
[1673681881038,0.3,20926.0,20924.0,0.1911607]
[1673681881278,0.96359869,20925.0,20922.0,0.16229669]
[1673681881526,0.96359869,20925.0,20922.0,0.019317]
[1673681881527,0.461397,20925.0,20922.0,0.019317]
[1673681881783,0.461397,20925.0,20922.0,0.16568998]
[1673681882032,0.3,20924.0,20922.0,0.16568998]
[1673681882279,0.964384,20923.0,20922.0,0.019317]
[1673681882526,1.364384,20923.0,20922.0,0.019127]
[1673681882806,0.1,20922.0,20921.0,0.15845763]
[1673681883028,0.477965,20922.0,20921.0,0.15845763]
[1673681884063,0.477965,20922.0,20919.0,0.37657211]
[1673681884291,0.477965,20922.0,20919.0,0.51777668]
[1673681884292,0.48690981,20922.0,20919.0,0.51777668]
[1673681884536,0.61990981,20922.0,20919.0,0.51777668]
[1673681884795,0.0085,20921.0,20919.0,0.51777668]
[1673681885037,0.96248169,20924.0,20919.0,0.51777668]
[1673681885038,0.0071914,20925.0,20920.0,1.45783761]
[1673681885293,0.0071914,20925.0,20921.0,0.86817471]
[1673681885294,0.007,20922.0,20921.0,0.86817471]
[1673681885527,0.00714522,20924.0,20921.0,0.46472691]
[1673681885766,0.00740822,20923.0,20922.0,0.215048]
[1673681886791,0.546078,20925.0,20922.0,0.215048]
[1673681887041,0.0085,20923.0,20921.0,0.18984551]
[1673681887293,0.0135,20923.0,20922.0,0.15785044]
[1673681887544,0.0085,20923.0,20922.0,0.46669344]
[1673681887773,0.0085,20923.0,20922.0,0.47869344]
[1673681888026,0.0085,20924.0,20922.0,0.46669344]
[1673681888269,0.0085,20924.0,20923.0,0.215022]
[1673681888746,0.0085,20925.0,20923.0,0.215022]
[1673681889005,0.0085,20925.0,20924.0,0.32081]
[1673681889243,0.0085,20925.0,20922.0,0.14585044]
[1673681889244,0.01623754,20925.0,20922.0,0.14585044]
[1673681889476,0.49413454,20925.0,20922.0,0.14585044]
[1673681889984,0.005,20923.0,20922.0,0.15785044]
[1673681890263,0.0135,20923.0,20922.0,0.47869344]
[1673681890518,0.0135,20923.0,20922.0,0.49069344]
[1673681890757,0.0085,20923.0,20922.0,0.46669344]
[1673681890992,0.0085,20924.0,20922.0,0.46669344]
[1673681891244,0.0085,20924.0,20923.0,0.215022]
[1673681891730,0.0085,20924.0,20923.0,0.320843]
[1673681891965,0.0085,20924.0,20922.0,0.14585044]
[1673681892454,0.02217698,20924.0,20923.0,0.320843]
[1673681892705,0.26217698,20924.0,20923.0,0.320843]
[1673681892942,0.26217698,20924.0,20922.0,0.15985044]
[1673681893431,0.25717698,20924.0,20923.0,0.320843]
[1673681893666,0.3165,20924.0,20923.0,0.002]
[1673681893928,0.2485,20924.0,20922.0,0.14585044]
[1673681894191,0.2535,20924.0,20922.0,0.15785044]
[1673681894451,0.2485,20924.0,20923.0,0.320843]
[1673681894707,0.3175,20924.0,20923.0,0.003]
[1673681894952,0.3175,20924.0,20923.0,0.20603701]
[1673681895229,0.3175,20924.0,20923.0,0.52688001]
[1673681895456,0.3175,20924.0,20923.0,0.46690001]
[1673681895681,0.2485,20924.0,20923.0,0.46390001]
[1673681895917,0.00981476,20924.0,20923.0,0.46390001]
[1673681896158,0.00981476,20924.0,20923.0,0.45890001]
[1673681896401,0.02081476,20924.0,20923.0,0.48290001]
[1673681896880,0.00981476,20924.0,20923.0,0.45890001]
[1673681897145,0.00981476,20924.0,20923.0,0.48290001]
[1673681897146,0.02081476,20924.0,20923.0,0.48290001]
[1673681897395,0.03221645,20924.0,20923.0,0.344843]
[1673681897646,0.03384159,20924.0,20923.0,0.024]
[1673681898161,0.52026159,20924.0,20923.0,0.024]
[1673681898646,0.99746328,20924.0,20923.0,0.024]
[1673681898908,1.5747603,20924.0,20923.0,0.024]
[1673681899152,1.5563964,20924.0,20923.0,0.024]
[1673681899391,1.29746328,20924.0,20923.0,0.024]
[1673681900374,0.99746328,20924.0,20923.0,0.024]
[1673681900868,1.67149024,20924.0,20923.0,0.024]
[1673681901117,1.54349024,20924.0,20923.0,0.024]
[1673681901353,0.77879215,20924.0,20923.0,0.024]
[1673681901606,0.5137471,20924.0,20923.0,0.024]
[1673681901859,1.25093389,20924.0,20923.0,0.024]
[1673681902108,1.35084791,20924.0,20923.0,0.024]
[1673681902362,1.33984791,20924.0,20920.0,0.18239773]
[1673681902620,0.73674473,20923.0,20920.0,0.18239773]
[1673681902852,0.59704091,20922.0,20919.0,0.019131]
[1673681903093,0.47720169,20921.0,20919.0,0.019131]
[1673681903351,0.0085,20920.0,20919.0,0.019131]
[1673681903838,0.486511,20920.0,20919.0,0.019131]
[1673681904139,0.786511,20920.0,20919.0,0.019131]
[1673681904414,0.586511,20920.0,20919.0,0.019131]
[1673681905503,0.586511,20920.0,20919.0,0.029131]
[1673681905743,0.586511,20920.0,20919.0,0.019131]
[1673681905993,0.590511,20920.0,20919.0,0.029131]
[1673681906474,0.60091893,20920.0,20919.0,0.029131]
[1673681907422,1.32429662,20920.0,20919.0,0.029131]
[1673681907664,1.63573332,20920.0,20919.0,0.029131]
[1673681907916,1.63570286,20920.0,20919.0,0.029131]
[1673681908147,1.37914948,20920.0,20919.0,0.029131]
[1673681908383,1.07914948,20920.0,20919.0,0.029131]
[1673681908638,1.06771269,20920.0,20919.0,0.029131]
[1673681908878,1.07942923,20920.0,20919.0,0.029131]
[1673681909114,0.84067573,20920.0,20919.0,0.029131]
[1673681909871,1.08631704,20920.0,20919.0,0.029131]
[1673681910111,1.39975778,20920.0,20919.0,0.029131]
[1673681910359,1.39978292,20920.0,20919.0,0.029131]
[1673681910915,1.09978292,20920.0,20919.0,0.029131]
[1673681911140,0.97333461,20920.0,20919.0,0.029131]
[1673681911401,1.16535919,20920.0,20919.0,0.029131]
[1673681911649,1.49750173,20920.0,20919.0,0.029131]
[1673681912157,1.59750173,20920.0,20919.0,0.029131]
[1673681912419,1.73490173,20920.0,20919.0,0.029131]
[1673681912665,1.60750173,20920.0,20919.0,0.029131]
[1673681912910,1.60750173,20920.0,20919.0,0.01]
[1673681913423,1.59750173,20920.0,20919.0,0.01]
[1673681913923,1.38177207,20920.0,20919.0,0.01]
[1673681917430,1.63697207,20920.0,20919.0,0.01]
[1673681918197,1.68475033,20920.0,20919.0,0.01]
[1673681919260,1.45864956,20920.0,20919.0,0.01]
[1673681919516,0.78877398,20920.0,20919.0,0.20072595]
[1673681919771,0.74099572,20920.0,20919.0,0.01]
[1673681920310,0.01603653,20920.0,20919.0,0.01]
[1673681920670,0.01603653,20920.0,20919.0,0.47348529]
[1673681920801,0.01603653,20920.0,20919.0,0.01]
[1673681921032,0.004,20920.0,20919.0,0.15264229]
[1673681921315,0.004,20920.0,20919.0,0.62611474]
[1673681921569,0.004,20920.0,20919.0,0.00899811]
[1673681921570,0.543221,20920.0,20919.0,0.00899811]
[1673681921838,0.482011,20920.0,20919.0,0.00899811]
[1673681922083,0.0125,20920.0,20919.0,0.87425427]
[1673681922331,0.26408803,20922.0,20919.0,0.6602908]
[1673681922576,0.74128972,20922.0,20920.0,0.215107]
[1673681922819,0.25194857,20922.0,20920.0,0.19072595]
[1673681923073,0.48862633,20924.0,20921.0,0.14264229]
[1673681923327,0.01181348,20923.0,20921.0,0.19072595]
[1673681923573,0.01181348,20923.0,20920.0,0.54418432]
[1673681924067,0.072,20922.0,20920.0,0.54418432]
[1673681924319,0.78975748,20923.0,20920.0,0.18757856]
[1673681924605,0.92475748,20923.0,20921.0,0.003]
[1673681925113,1.26695917,20923.0,20920.0,0.18757856]
[1673681925358,1.26695917,20923.0,20920.0,0.38230451]
[1673681925359,0.56175748,20923.0,20920.0,0.38230451]
[1673681925639,0.477924,20924.0,20920.0,0.73491027]
[1673681925871,0.95512569,20924.0,20922.0,0.16030626]
[1673681926635,0.95512569,20924.0,20921.0,0.004]
[1673681926636,0.135,20923.0,20921.0,0.004]
[1673681926899,0.01322261,20923.0,20920.0,0.31316339]
[1673681927145,0.01322261,20923.0,20922.0,0.005]
[1673681927384,0.9683683,20923.0,20922.0,0.005]
[1673681927670,1.08070325,20923.0,20922.0,0.005]
[1673681927919,1.48070325,20923.0,20922.0,0.005]
[1673681928209,1.38070325,20923.0,20919.0,0.35660576]
[1673681928443,1.57047608,20923.0,20920.0,0.038]
[1673681928671,0.01083633,20922.0,20920.0,0.038]
[1673681928915,0.48880733,20922.0,20920.0,0.038]
[1673681929415,0.96600902,20922.0,20920.0,0.038]
[1673681929661,0.96600902,20922.0,20919.0,0.19778494]
[1673681929933,0.96600902,20922.0,20918.0,0.79710576]
[1673681929934,0.47720169,20921.0,20918.0,0.35660576]
[1673681930189,0.47720169,20921.0,20916.0,0.01780367]
[1673681930190,0.7703109,20920.0,20916.0,0.01780367]
[1673681930451,0.48570169,20919.0,20916.0,0.35218763]
[1673681930736,0.0085,20919.0,20916.0,0.35218763]
[1673681930953,0.0085,20919.0,20916.0,0.20954534]
[1673681930954,0.486545,20919.0,20916.0,0.20954534]
[1673681931213,0.486545,20919.0,20916.0,0.01780367]
[1673681931461,0.01268572,20918.0,20916.0,0.01780367]
[1673681931709,1.19752629,20918.0,20916.0,0.05661367]
[1673681931962,1.19752629,20918.0,20915.0,0.01723674]
[1673681931963,1.24851352,20917.0,20915.0,0.01723674]
[1673681932239,1.24759441,20917.0,20915.0,0.01723674]
[1673681933219,0.47808,20917.0,20915.0,0.01723674]
[1673681933719,1.09028169,20917.0,20915.0,0.01723674]
[1673681933966,0.07414919,20916.0,20915.0,0.01723674]
[1673681934487,0.55225119,20916.0,20915.0,0.01723674]
[1673681934719,0.85225119,20916.0,20915.0,0.01723674]
[1673681934979,0.56075119,20916.0,20915.0,0.01723674]
[1673681935218,0.69575119,20916.0,20915.0,0.01723674]
[1673681935472,0.45699822,20916.0,20915.0,0.01723674]
[1673681935722,0.1435,20916.0,20915.0,0.01723674]
[1673681936984,0.621602,20916.0,20915.0,0.01723674]
[1673681937473,1.21296887,20916.0,20915.0,0.01723674]
[1673681937724,0.921602,20916.0,20915.0,0.01723674]
[1673681937980,1.21296885,20916.0,20915.0,0.01723674]
[1673681938731,0.621602,20916.0,20915.0,0.01723674]
[1673681941086,0.1435,20916.0,20915.0,0.01723674]
[1673681943093,0.1435,20916.0,20915.0,0.33807974]
[1673681943338,0.0085,20916.0,20915.0,0.33807974]
[1673681943590,0.1435,20916.0,20915.0,0.01823674]
[1673681944102,0.621602,20916.0,20915.0,0.01823674]
[1673681944353,0.486602,20916.0,20915.0,0.01723674]
[1673681945317,0.592602,20916.0,20915.0,0.01923674]
[1673681945590,0.0085,20916.0,20915.0,0.01723674]
[1673681945836,0.1435,20916.0,20915.0,0.199595]
[1673681946330,0.1435,20916.0,20915.0,0.520438]
[1673681947333,0.1435,20916.0,20915.0,0.33907974]
[1673681947587,0.1435,20916.0,20915.0,0.01823674]
[1673681948084,0.135,20916.0,20915.0,0.17961141]
[1673681948589,0.78756552,20919.0,20915.0,0.17961141]
[1673681948835,0.78660829,20919.0,20915.0,0.37033736]
[1673681949089,0.78642829,20919.0,20915.0,0.37033736]
[1673681949345,0.0085,20918.0,20915.0,0.37033736]
[1673681949606,0.486558,20918.0,20915.0,0.17861141]
[1673681949850,0.0085,20918.0,20916.0,0.14488245]
[1673681950638,0.0085,20918.0,20916.0,0.3356084]
[1673681950885,6e-05,20920.0,20916.0,0.3356084]
[1673681950886,6e-05,20920.0,20916.0,1.02543271]
[1673681951133,0.52177603,20924.0,20917.0,0.75421124]
[1673681951134,0.52167243,20924.0,20917.0,0.75421124]
[1673681951380,0.044,20918.0,20917.0,0.24264229]
[1673681951629,0.30887152,20924.0,20918.0,0.1]
[1673681951877,0.00526744,20925.0,20919.0,0.47920292]
[1673681952126,0.00526744,20925.0,20919.0,0.63637792]
[1673681952378,0.00526744,20925.0,20920.0,0.19072595]
[1673681952379,0.004,20924.0,20920.0,0.19072595]
[1673681952633,0.48316544,20925.0,20920.0,0.19072595]
[1673681952882,0.00826744,20925.0,20921.0,0.19072595]
[1673681953132,0.00526744,20925.0,20922.0,0.19072595]
[1673681953389,0.001,20924.0,20922.0,0.19072595]
[1673681953636,0.001,20924.0,20923.0,0.420843]
[1673681954398,0.03226744,20925.0,20923.0,0.56245291]
[1673681954645,0.03226744,20925.0,20924.0,0.214995]
[1673681954646,0.00526744,20925.0,20924.0,0.214995]
[1673681954885,0.00526744,20925.0,20923.0,0.24160991]
[1673681955146,0.006,20924.0,20923.0,0.25160991]
[1673681955400,0.006,20924.0,20923.0,0.26160991]
[1673681955643,0.0145,20924.0,20923.0,0.58245291]
[1673681955901,0.0145,20924.0,20923.0,0.440843]
[1673681956170,0.006,20924.0,20923.0,0.918785]
[1673681956414,0.006,20924.0,20923.0,1.046785]
[1673681956906,0.006,20924.0,20923.0,1.04685975]
[1673681957145,0.00526744,20925.0,20923.0,1.02685975]
[1673681957387,0.00526744,20925.0,20924.0,0.1277]
[1673681957661,0.00526744,20925.0,20924.0,0.548543]
[1673681957906,0.00526744,20925.0,20924.0,1.026463]
[1673681958132,0.00517343,20927.0,20925.0,0.1]
[1673681958133,0.00511343,20927.0,20925.0,0.1]
[1673681958417,0.00511343,20927.0,20926.0,0.69290274]
[1673681958674,0.00511343,20927.0,20926.0,0.79290274]
[1673681958928,0.03365851,20930.0,20927.0,0.1]
[1673681959199,0.03365851,20930.0,20928.0,0.320843]
[1673681959446,0.03365851,20930.0,20926.0,0.19955143]
[1673681959706,0.03365851,20930.0,20927.0,0.17083101]
[1673681960213,0.0085,20929.0,20927.0,0.17083101]
[1673681960954,0.0085,20929.0,20927.0,0.31083101]
[1673681961206,0.0085,20929.0,20927.0,0.17083101]
[1673681961457,0.0085,20929.0,20927.0,0.31083101]
[1673681961918,0.0085,20929.0,20927.0,0.159]
[1673681962165,0.28858606,20931.0,20927.0,0.159]
[1673681962414,0.28858606,20931.0,20928.0,0.17385834]
[1673681963393,0.3,20930.0,20928.0,0.17385834]
[1673681963655,0.0085,20929.0,20928.0,0.17385834]
[1673681963899,0.0085,20929.0,20925.0,0.19999]
[1673681963900,0.0085,20929.0,20925.0,0.20018]
[1673681964145,0.0085,20929.0,20926.0,0.198422]
[1673681964404,0.0085,20929.0,20926.0,0.19850655]
[1673681966172,0.0085,20929.0,20926.0,0.28850655]
[1673681967161,0.0085,20929.0,20927.0,0.14404845]
[1673681969113,0.0085,20929.0,20927.0,0.16304845]
[1673681969357,0.0085,20930.0,20927.0,0.16304845]
[1673681970629,0.0085,20930.0,20927.0,0.34404845]
[1673681970861,0.0085,20930.0,20927.0,0.36304845]
[1673681971127,0.0085,20930.0,20928.0,9.247e-05]
[1673681971388,0.0085,20930.0,20928.0,0.35024283]
[1673681971632,0.0057182,20932.0,20928.0,0.15951688]
[1673681971872,0.0057182,20932.0,20928.0,0.82807083]
[1673681972378,0.006,20930.0,20928.0,0.66864642]
[1673681972618,0.0057182,20932.0,20929.0,0.14678801]
[1673681972864,0.0117182,20932.0,20930.0,0.320843]
[1673681973104,0.0115982,20932.0,20929.0,0.14678801]
[1673681973338,0.0115982,20932.0,20930.0,9.246e-05]
[1673681973583,0.0055982,20932.0,20930.0,9.246e-05]
[1673681973844,0.0115982,20932.0,20930.0,9.246e-05]
[1673681974839,0.44138316,20933.0,20930.0,9.246e-05]
[1673681975091,0.69074273,20935.0,20930.0,0.19257963]
[1673681975092,0.69086273,20935.0,20930.0,0.19257963]
[1673681975339,0.0085,20934.0,20931.0,0.19072595]
[1673681975581,0.0085,20934.0,20930.0,0.20157963]
[1673681976065,0.0085,20934.0,20930.0,0.19257963]
[1673681976312,0.0085,20934.0,20931.0,0.174857]
[1673681976571,0.0085,20934.0,20927.0,0.2]
[1673681976572,0.128,20932.0,20927.0,0.2]
[1673681976814,0.79439081,20931.0,20930.0,0.009]
[1673681977057,1.96678595,20931.0,20930.0,0.00800197]
[1673681977294,2.57547507,20931.0,20930.0,0.00800197]
[1673681977790,2.57547507,20931.0,20930.0,0.20800197]
[1673681978074,2.52769681,20931.0,20930.0,0.2]
[1673681978313,2.65569681,20931.0,20930.0,0.2]
[1673681978565,3.03052475,20931.0,20930.0,0.01597125]